[Event "Titled Tuesday Blitz November 07 Early 2023"]
[White "Ionescu, Mihai"]
[Black "Dodaro, Mattia"]
[WhiteFideId "1202499"]
[BlackFideId "28583400"]
[WhiteElo "2459"]
[BlackElo "2254"]
[Result "1/2-1/2"]
[Round "3"]
[TimeControl "180+1"]
[Date "2023.11.07"]
[WhiteClock "0:00:51"]
[BlackClock "0:00:14"]
[Board "210"]

1. Nf3 {[%clk 0:02:32]}  a6 {[%clk 0:03:00]} 2. d4 {[%clk 0:02:32]}  e6 {[%clk 0:02:59]} 3. e4 {[%clk 0:02:32]}  d5 {[%clk 0:02:58]} 4. exd5 {[%clk 0:02:32]}  exd5 {[%clk 0:02:59]} 5. Bd3 {[%clk 0:02:32]}  Bd6 {[%clk 0:02:58]} 6. O-O {[%clk 0:02:31]}  Ne7 {[%clk 0:02:59]} 7. h3 {[%clk 0:02:30]}  O-O {[%clk 0:02:59]} 8. Re1 {[%clk 0:02:30]}  Nbc6 {[%clk 0:02:58]} 9. c3 {[%clk 0:02:30]}  Bf5 {[%clk 0:02:58]} 10. Bxf5 {[%clk 0:02:25]}  Nxf5 {[%clk 0:02:59]} 11. Qd3 {[%clk 0:02:26]}  Qf6 {[%clk 0:02:57]} 12. Nbd2 {[%clk 0:02:24]}  Rae8 {[%clk 0:02:55]} 13. Rxe8 {[%clk 0:02:24]}  Rxe8 {[%clk 0:02:55]} 14. Nf1 {[%clk 0:02:24]}  Nh4 {[%clk 0:02:50]} 15. Nxh4 {[%clk 0:02:20]}  Qxh4 {[%clk 0:02:51]} 16. Bd2 {[%clk 0:02:19]}  Re6 {[%clk 0:02:47]} 17. Re1 {[%clk 0:02:18]}  Rxe1 {[%clk 0:02:42]} 18. Bxe1 {[%clk 0:02:17]}  Ne7 {[%clk 0:02:41]} 19. Qe2 {[%clk 0:02:13]}  Qf4 {[%clk 0:02:38]} 20. Bd2 {[%clk 0:02:11]}  Qf5 {[%clk 0:02:37]} 21. a3 {[%clk 0:01:56]}  Kf8 {[%clk 0:02:30]} 22. g4 {[%clk 0:01:49]}  Qc2 {[%clk 0:02:25]} 23. b4 {[%clk 0:01:42]}  Ng6 {[%clk 0:02:01]} 24. Ng3 {[%clk 0:01:30]}  Bxg3 {[%clk 0:01:33]} 25. fxg3 {[%clk 0:01:29]}  Qa2 {[%clk 0:01:24]} 26. Qd3 {[%clk 0:01:14]}  Qxa3 {[%clk 0:01:19]} 27. h4 {[%clk 0:01:14]}  h6 {[%clk 0:01:14]} 28. Kg2 {[%clk 0:01:11]}  Qa2 {[%clk 0:01:10]} 29. Kh3 {[%clk 0:01:10]}  Qc4 {[%clk 0:01:06]} 30. Qf5 {[%clk 0:01:07]}  Ne7 {[%clk 0:01:00]} 31. Qd7 {[%clk 0:01:07]}  Qf1+ {[%clk 0:00:59]} 32. Kh2 {[%clk 0:01:06]}  Qe2+ {[%clk 0:00:58]} 33. Kh3 {[%clk 0:01:06]}  Kg8 {[%clk 0:00:34]} 34. Bf4 {[%clk 0:00:56]}  Ng6 {[%clk 0:00:22]} 35. Qc8+ {[%clk 0:00:51]}  Kh7 {[%clk 0:00:22]} 36. Qf5 {[%clk 0:00:50]}  Qf1+ {[%clk 0:00:20]} 37. Kh2 {[%clk 0:00:50]}  Qf2+ {[%clk 0:00:20]} 38. Kh3 {[%clk 0:00:51]}  Qf1+ {[%clk 0:00:20]} 39. Kh2 {[%clk 0:00:51]}  Qf2+ {[%clk 0:00:19]} 40. Kh3 {[%clk 0:00:51]}  Qf1+ {[%clk 0:00:14]} 1/2-1/2


[Site "https://www.chess.com"]

[Event "Titled Tuesday Blitz November 07 Early 2023"]
[White "Czerw, Dawid"]
[Black "Bolivar Losada, Jeison"]
[WhiteFideId "1145746"]
[BlackFideId "4404793"]
[WhiteElo "2455"]
[BlackElo "2254"]
[Result "1-0"]
[Round "3"]
[TimeControl "180+1"]
[Date "2023.11.07"]
[WhiteClock "0:01:55"]
[BlackClock "0:00:00"]
[Board "211"]

1. e4 {[%clk 0:03:00]}  c5 {[%clk 0:02:52]} 2. Nf3 {[%clk 0:03:01]}  d6 {[%clk 0:02:51]} 3. d4 {[%clk 0:03:01]}  cxd4 {[%clk 0:02:51]} 4. Nxd4 {[%clk 0:03:02]}  Nf6 {[%clk 0:02:51]} 5. Nc3 {[%clk 0:03:03]}  a6 {[%clk 0:02:51]} 6. h4 {[%clk 0:03:03]}  e5 {[%clk 0:02:00]} 7. Nb3 {[%clk 0:03:04]}  Be7 {[%clk 0:01:40]} 8. Be2 {[%clk 0:03:03]}  Be6 {[%clk 0:01:30]} 9. f4 {[%clk 0:03:03]}  Qc7 {[%clk 0:01:22]} 10. f5 {[%clk 0:03:02]}  Bc4 {[%clk 0:01:21]} 11. g4 {[%clk 0:03:01]}  h6 {[%clk 0:01:15]} 12. Rg1 {[%clk 0:03:00]}  Nh7 {[%clk 0:01:12]} 13. g5 {[%clk 0:02:57]}  Bxe2 {[%clk 0:00:51]} 14. Qxe2 {[%clk 0:02:57]}  hxg5 {[%clk 0:00:51]} 15. Nd5 {[%clk 0:02:56]}  Qd8 {[%clk 0:00:50]} 16. hxg5 {[%clk 0:02:54]}  Bxg5 {[%clk 0:00:43]} 17. Bxg5 {[%clk 0:02:48]}  Nxg5 {[%clk 0:00:43]} 18. O-O-O {[%clk 0:02:39]}  Nc6 {[%clk 0:00:29]} 19. Kb1 {[%clk 0:02:35]}  f6 {[%clk 0:00:26]} 20. Ne3 {[%clk 0:02:28]}  Qe7 {[%clk 0:00:18]} 21. Nc4 {[%clk 0:02:21]}  O-O-O {[%clk 0:00:17]} 22. Rg3 {[%clk 0:02:17]}  Rh4 {[%clk 0:00:14]} 23. Re3 {[%clk 0:02:10]}  Kb8 {[%clk 0:00:13]} 24. a4 {[%clk 0:02:08]}  Na7 {[%clk 0:00:03]} 25. Nba5 {[%clk 0:02:01]}  Nc8 {[%clk 0:00:03]} 26. Rb3 {[%clk 0:01:56]}  Rd7 {[%clk 0:00:00]} 27. Nc6+ {[%clk 0:01:55]} 1-0


[Site "https://www.chess.com"]

[Event "Titled Tuesday Blitz November 07 Early 2023"]
[White "Boraso, Alessio"]
[Black "Akylbek2021"]
[WhiteFideId "848077"]
[WhiteElo "2453"]
[BlackElo "2236"]
[Result "0-1"]
[Round "3"]
[TimeControl "180+1"]
[Date "2023.11.07"]
[WhiteClock "0:00:01"]
[BlackClock "0:00:05"]
[Board "212"]

1. b3 {[%clk 0:03:00]}  e6 {[%clk 0:02:58]} 2. Bb2 {[%clk 0:03:01]}  Nf6 {[%clk 0:02:58]} 3. e3 {[%clk 0:03:01]}  d5 {[%clk 0:02:58]} 4. Nf3 {[%clk 0:03:02]}  Be7 {[%clk 0:02:59]} 5. c4 {[%clk 0:02:57]}  O-O {[%clk 0:02:59]} 6. Qc2 {[%clk 0:02:53]}  h6 {[%clk 0:02:55]} 7. Rg1 {[%clk 0:02:50]}  Nbd7 {[%clk 0:02:43]} 8. g4 {[%clk 0:02:48]}  Nh7 {[%clk 0:02:37]} 9. Nc3 {[%clk 0:02:35]}  c6 {[%clk 0:02:24]} 10. Bd3 {[%clk 0:02:31]}  Ng5 {[%clk 0:02:19]} 11. Nxg5 {[%clk 0:02:26]}  Bxg5 {[%clk 0:02:14]} 12. O-O-O {[%clk 0:02:25]}  Nc5 {[%clk 0:02:12]} 13. f4 {[%clk 0:02:15]}  Nxd3+ {[%clk 0:01:53]} 14. Qxd3 {[%clk 0:02:16]}  Bh4 {[%clk 0:01:43]} 15. g5 {[%clk 0:02:13]}  hxg5 {[%clk 0:01:39]} 16. fxg5 {[%clk 0:02:10]}  e5 {[%clk 0:01:08]} 17. cxd5 {[%clk 0:02:04]}  cxd5 {[%clk 0:00:57]} 18. Nxd5 {[%clk 0:02:04]}  Bxg5 {[%clk 0:00:41]} 19. h4 {[%clk 0:01:49]}  Be6 {[%clk 0:00:32]} 20. Rxg5 {[%clk 0:01:29]}  Qxd5 {[%clk 0:00:25]} 21. Qxd5 {[%clk 0:00:40]}  Bxd5 {[%clk 0:00:25]} 22. Rxe5 {[%clk 0:00:41]}  Rac8+ {[%clk 0:00:22]} 23. Bc3 {[%clk 0:00:38]}  Bf3 {[%clk 0:00:09]} 24. Rg1 {[%clk 0:00:36]}  g6 {[%clk 0:00:10]} 25. Kb2 {[%clk 0:00:35]}  Rfe8 {[%clk 0:00:10]} 26. Rf5 {[%clk 0:00:32]}  Be2 {[%clk 0:00:07]} 27. Rg2 {[%clk 0:00:27]}  Bd3 {[%clk 0:00:04]} 28. Rh5 {[%clk 0:00:26]}  Kf8 {[%clk 0:00:02]} 29. Rd5 {[%clk 0:00:05]}  Be4 {[%clk 0:00:01]} 30. Rgg5 {[%clk 0:00:03]}  Bxd5 {[%clk 0:00:02]} 31. Rxd5 {[%clk 0:00:04]}  Rcd8 {[%clk 0:00:01]} 32. Rc5 {[%clk 0:00:04]}  Kg8 {[%clk 0:00:02]} 33. Rg5 {[%clk 0:00:05]}  Kh7 {[%clk 0:00:02]} 34. h5 {[%clk 0:00:05]}  Kh6 {[%clk 0:00:02]} 35. Rg3 {[%clk 0:00:03]}  gxh5 {[%clk 0:00:03]} 36. Bf6 {[%clk 0:00:03]}  Rg8 {[%clk 0:00:03]} 37. Rf3 {[%clk 0:00:02]}  Rd5 {[%clk 0:00:03]} 38. Bd4 {[%clk 0:00:02]}  Rdg5 {[%clk 0:00:03]} 39. Rxf7 {[%clk 0:00:01]}  Rb5 {[%clk 0:00:03]} 40. Kc3 {[%clk 0:00:01]}  a5 {[%clk 0:00:03]} 41. Kd3 {[%clk 0:00:02]}  h4 {[%clk 0:00:03]} 42. a4 {[%clk 0:00:03]}  Rxb3+ {[%clk 0:00:03]} 43. Kc4 {[%clk 0:00:03]}  Rb4+ {[%clk 0:00:03]} 44. Kc3 {[%clk 0:00:03]}  Rxa4 {[%clk 0:00:04]} 45. Rf4 {[%clk 0:00:03]}  Kh5 {[%clk 0:00:04]} 46. Rf5+ {[%clk 0:00:02]}  Rg5 {[%clk 0:00:04]} 47. Rf4 {[%clk 0:00:03]}  Rg4 {[%clk 0:00:04]} 48. Rf5+ {[%clk 0:00:03]}  Rg5 {[%clk 0:00:05]} 49. Rf4 {[%clk 0:00:04]}  Ra3+ {[%clk 0:00:06]} 50. Kc2 {[%clk 0:00:03]}  Ra2+ {[%clk 0:00:06]} 51. Kb3 {[%clk 0:00:04]}  Rxd2 {[%clk 0:00:05]} 52. Bf6 {[%clk 0:00:04]}  Rb5+ {[%clk 0:00:04]} 53. Kc4 {[%clk 0:00:04]}  Rb4+ {[%clk 0:00:05]} 54. Kc3 {[%clk 0:00:03]}  Rxf4 {[%clk 0:00:05]} 55. Kxd2 {[%clk 0:00:01]}  Rxf6 {[%clk 0:00:05]} 0-1


[Site "https://www.chess.com"]

[Event "Titled Tuesday Blitz November 07 Early 2023"]
[White "Quirke, Jeffrey"]
[Black "Cesar Maestre, Bernardo"]
[WhiteFideId "2013029"]
[BlackFideId "24542547"]
[WhiteElo "2231"]
[BlackElo "2421"]
[Result "1-0"]
[Round "3"]
[TimeControl "180+1"]
[Date "2023.11.07"]
[WhiteClock "0:00:46"]
[BlackClock "0:00:05"]
[Board "214"]

1. e4 {[%clk 0:02:54]}  c5 {[%clk 0:02:59]} 2. c3 {[%clk 0:02:54]}  Nf6 {[%clk 0:02:57]} 3. e5 {[%clk 0:02:54]}  Nd5 {[%clk 0:02:58]} 4. Nf3 {[%clk 0:02:54]}  Nc6 {[%clk 0:02:56]} 5. Bc4 {[%clk 0:02:52]}  Nb6 {[%clk 0:02:57]} 6. Bb3 {[%clk 0:02:52]}  c4 {[%clk 0:02:57]} 7. Bc2 {[%clk 0:02:51]}  d5 {[%clk 0:02:56]} 8. exd6 {[%clk 0:02:50]}  Qxd6 {[%clk 0:02:57]} 9. O-O {[%clk 0:02:51]}  Bg4 {[%clk 0:02:54]} 10. Na3 {[%clk 0:02:40]}  O-O-O {[%clk 0:02:36]} 11. Qe2 {[%clk 0:02:40]}  e5 {[%clk 0:02:31]} 12. Nxc4 {[%clk 0:02:26]}  Nxc4 {[%clk 0:02:29]} 13. Qxc4 {[%clk 0:02:26]}  Bxf3 {[%clk 0:02:25]} 14. gxf3 {[%clk 0:02:25]}  Kb8 {[%clk 0:01:23]} 15. d3 {[%clk 0:02:12]}  f5 {[%clk 0:01:17]} 16. f4 {[%clk 0:01:54]}  Be7 {[%clk 0:01:08]} 17. Be3 {[%clk 0:01:49]}  g5 {[%clk 0:00:58]} 18. fxe5 {[%clk 0:01:07]}  Nxe5 {[%clk 0:00:54]} 19. Qa4 {[%clk 0:01:07]}  b6 {[%clk 0:00:15]} 20. f3 {[%clk 0:01:04]}  g4 {[%clk 0:00:13]} 21. Bf4 {[%clk 0:00:54]}  gxf3 {[%clk 0:00:09]} 22. d4 {[%clk 0:00:47]}  Qg6+ {[%clk 0:00:09]} 23. Bg3 {[%clk 0:00:47]}  f4 {[%clk 0:00:05]} 24. Bxg6 {[%clk 0:00:46]} 1-0


[Site "https://www.chess.com"]

[Event "Titled Tuesday Blitz November 07 Early 2023"]
[White "Kiseljova, Marya"]
[Black "Begunov, Konstantin"]
[WhiteFideId "4155009"]
[BlackFideId "4118510"]
[WhiteElo "2229"]
[BlackElo "2404"]
[Result "0-1"]
[Round "3"]
[TimeControl "180+1"]
[Date "2023.11.07"]
[WhiteClock "0:00:33"]
[BlackClock "0:00:10"]
[Board "216"]

1. d4 {[%clk 0:02:59]}  d5 {[%clk 0:02:59]} 2. c4 {[%clk 0:02:59]}  c6 {[%clk 0:03:00]} 3. Nf3 {[%clk 0:02:58]}  Nf6 {[%clk 0:02:59]} 4. g3 {[%clk 0:02:59]}  Bf5 {[%clk 0:02:57]} 5. Nc3 {[%clk 0:02:56]}  e6 {[%clk 0:02:58]} 6. Nh4 {[%clk 0:02:55]}  Bg4 {[%clk 0:02:54]} 7. f3 {[%clk 0:02:53]}  Bh5 {[%clk 0:02:49]} 8. Bg5 {[%clk 0:02:35]}  Be7 {[%clk 0:02:44]} 9. Bh3 {[%clk 0:02:26]}  h6 {[%clk 0:02:10]} 10. Be3 {[%clk 0:02:15]}  dxc4 {[%clk 0:02:06]} 11. O-O {[%clk 0:02:14]}  Nd5 {[%clk 0:02:05]} 12. Bf2 {[%clk 0:02:10]}  Bxh4 {[%clk 0:01:35]} 13. gxh4 {[%clk 0:02:11]}  Nf4 {[%clk 0:01:35]} 14. Bg4 {[%clk 0:02:07]}  Bxg4 {[%clk 0:01:29]} 15. fxg4 {[%clk 0:02:08]}  Nh3+ {[%clk 0:01:30]} 16. Kg2 {[%clk 0:02:07]}  Nxf2 {[%clk 0:01:30]} 17. Rxf2 {[%clk 0:02:08]}  Qxh4 {[%clk 0:01:30]} 18. e3 {[%clk 0:02:06]}  Nd7 {[%clk 0:01:23]} 19. Qf3 {[%clk 0:02:01]}  Nf6 {[%clk 0:01:17]} 20. h3 {[%clk 0:02:00]}  h5 {[%clk 0:01:10]} 21. Ne4 {[%clk 0:01:53]}  hxg4 {[%clk 0:01:07]} 22. Nxf6+ {[%clk 0:01:53]}  gxf6 {[%clk 0:01:02]} 23. Qxg4 {[%clk 0:01:49]}  Qh6 {[%clk 0:00:36]} 24. Rf3 {[%clk 0:01:41]}  O-O-O {[%clk 0:00:36]} 25. Kf2 {[%clk 0:01:28]}  f5 {[%clk 0:00:32]} 26. Qf4 {[%clk 0:01:26]}  Qf6 {[%clk 0:00:26]} 27. Rg1 {[%clk 0:01:24]}  Rh4 {[%clk 0:00:25]} 28. Qg5 {[%clk 0:01:21]}  Qh8 {[%clk 0:00:22]} 29. Rgg3 {[%clk 0:01:17]}  c5 {[%clk 0:00:20]} 30. Qg7 {[%clk 0:01:06]}  cxd4 {[%clk 0:00:18]} 31. exd4 {[%clk 0:01:04]}  Qxg7 {[%clk 0:00:16]} 32. Rxg7 {[%clk 0:01:04]}  Rhxd4 {[%clk 0:00:15]} 33. Rxf7 {[%clk 0:01:02]}  Rd2+ {[%clk 0:00:15]} 34. Kg3 {[%clk 0:01:01]}  R8d7 {[%clk 0:00:15]} 35. Rf8+ {[%clk 0:01:00]}  Kc7 {[%clk 0:00:14]} 36. Re8 {[%clk 0:00:59]}  Kd6 {[%clk 0:00:13]} 37. h4 {[%clk 0:00:59]}  Rxb2 {[%clk 0:00:13]} 38. h5 {[%clk 0:00:59]}  Rb1 {[%clk 0:00:13]} 39. Rf2 {[%clk 0:00:58]}  Rg1+ {[%clk 0:00:12]} 40. Kh4 {[%clk 0:00:57]}  Rh1+ {[%clk 0:00:12]} 41. Kg5 {[%clk 0:00:57]}  Rg7+ {[%clk 0:00:11]} 42. Kh6 {[%clk 0:00:57]}  Rg4 {[%clk 0:00:11]} 43. Rd2+ {[%clk 0:00:55]}  Ke5 {[%clk 0:00:12]} 44. Re2+ {[%clk 0:00:52]}  Re4 {[%clk 0:00:12]} 45. Rg2 {[%clk 0:00:46]}  Reh4 {[%clk 0:00:12]} 46. Rg5 {[%clk 0:00:45]}  c3 {[%clk 0:00:11]} 47. Rc8 {[%clk 0:00:41]}  R4h3 {[%clk 0:00:11]} 48. Kg6 {[%clk 0:00:40]}  b5 {[%clk 0:00:09]} 49. h6 {[%clk 0:00:40]}  Rxh6+ {[%clk 0:00:08]} 50. Kf7 {[%clk 0:00:39]}  Rh7+ {[%clk 0:00:09]} 51. Ke8 {[%clk 0:00:36]}  Rh8+ {[%clk 0:00:09]} 52. Kd7 {[%clk 0:00:37]}  R1h7+ {[%clk 0:00:09]} 53. Kc6 {[%clk 0:00:36]}  Rxc8+ {[%clk 0:00:09]} 54. Kxb5 {[%clk 0:00:33]}  c2 {[%clk 0:00:10]} 0-1


[Site "https://www.chess.com"]

[Event "Titled Tuesday Blitz November 07 Early 2023"]
[White "Todorovic, Bojan"]
[Black "Goswami, Vedant"]
[WhiteFideId "917087"]
[BlackFideId "5003725"]
[WhiteElo "2403"]
[BlackElo "2329"]
[Result "1-0"]
[Round "3"]
[TimeControl "180+1"]
[Date "2023.11.07"]
[WhiteClock "0:02:08"]
[BlackClock "0:01:42"]
[Board "217"]

1. Nf3 {[%clk 0:02:59]}  b6 {[%clk 0:02:58]} 2. g3 {[%clk 0:02:56]}  Bb7 {[%clk 0:02:58]} 3. Bg2 {[%clk 0:02:56]}  e6 {[%clk 0:02:58]} 4. O-O {[%clk 0:02:56]}  Nf6 {[%clk 0:02:58]} 5. c4 {[%clk 0:02:56]}  c5 {[%clk 0:02:57]} 6. Nc3 {[%clk 0:02:56]}  Be7 {[%clk 0:02:57]} 7. d4 {[%clk 0:02:56]}  cxd4 {[%clk 0:02:53]} 8. Qxd4 {[%clk 0:02:56]}  d6 {[%clk 0:02:52]} 9. Rd1 {[%clk 0:02:46]}  a6 {[%clk 0:02:49]} 10. Bg5 {[%clk 0:02:44]}  Nbd7 {[%clk 0:02:48]} 11. Qd2 {[%clk 0:02:43]}  h6 {[%clk 0:02:47]} 12. Bf4 {[%clk 0:02:42]}  e5 {[%clk 0:02:45]} 13. Be3 {[%clk 0:02:40]}  Ne4 {[%clk 0:02:25]} 14. Nxe4 {[%clk 0:02:37]}  Bxe4 {[%clk 0:02:24]} 15. Nxe5 {[%clk 0:02:29]}  Bxg2 {[%clk 0:02:19]} 16. Nxd7 {[%clk 0:02:29]}  Bc6 {[%clk 0:01:59]} 17. Nxb6 {[%clk 0:02:26]}  Rb8 {[%clk 0:01:59]} 18. Nd5 {[%clk 0:02:24]}  O-O {[%clk 0:01:56]} 19. b3 {[%clk 0:02:18]}  a5 {[%clk 0:01:47]} 20. Bf4 {[%clk 0:02:09]}  a4 {[%clk 0:01:42]} 21. Nxe7+ {[%clk 0:02:08]} 1-0


[Site "https://www.chess.com"]

[Event "Titled Tuesday Blitz November 07 Early 2023"]
[White "Hartikainen, Jarmo"]
[Black "Bashirli, Saadat"]
[WhiteFideId "503134"]
[BlackFideId "13429990"]
[WhiteElo "2189"]
[BlackElo "2401"]
[Result "0-1"]
[Round "3"]
[TimeControl "180+1"]
[Date "2023.11.07"]
[WhiteClock "0:00:04"]
[BlackClock "0:00:03"]
[Board "218"]

1. e4 {[%clk 0:03:00]}  e5 {[%clk 0:02:58]} 2. Nf3 {[%clk 0:03:00]}  Nc6 {[%clk 0:02:59]} 3. Bc4 {[%clk 0:03:00]}  Bc5 {[%clk 0:02:59]} 4. c3 {[%clk 0:02:59]}  Nf6 {[%clk 0:03:00]} 5. d4 {[%clk 0:02:59]}  exd4 {[%clk 0:03:00]} 6. b4 {[%clk 0:02:59]}  Bb6 {[%clk 0:02:56]} 7. e5 {[%clk 0:02:59]}  Ne4 {[%clk 0:02:53]} 8. b5 {[%clk 0:02:54]}  Na5 {[%clk 0:02:50]} 9. Bd5 {[%clk 0:02:53]}  Nxc3 {[%clk 0:02:48]} 10. Nxc3 {[%clk 0:02:52]}  dxc3 {[%clk 0:02:49]} 11. Bg5 {[%clk 0:02:51]}  f6 {[%clk 0:02:46]} 12. exf6 {[%clk 0:02:51]}  gxf6 {[%clk 0:02:46]} 13. O-O {[%clk 0:02:08]}  fxg5 {[%clk 0:02:42]} 14. Ne5 {[%clk 0:01:47]}  Bc5 {[%clk 0:01:34]} 15. Qh5+ {[%clk 0:01:43]}  Ke7 {[%clk 0:01:33]} 16. Rae1 {[%clk 0:01:33]}  Qe8 {[%clk 0:01:15]} 17. Nd3+ {[%clk 0:01:05]}  Kd8 {[%clk 0:01:02]} 18. Rxe8+ {[%clk 0:01:02]}  Rxe8 {[%clk 0:01:03]} 19. Nxc5 {[%clk 0:01:01]}  c6 {[%clk 0:00:54]} 20. Qxg5+ {[%clk 0:00:58]}  Kc7 {[%clk 0:00:52]} 21. Bf7 {[%clk 0:00:53]}  Re2 {[%clk 0:00:36]} 22. Qg3+ {[%clk 0:00:42]}  d6 {[%clk 0:00:34]} 23. a4 {[%clk 0:00:35]}  c2 {[%clk 0:00:26]} 24. Nd3 {[%clk 0:00:18]}  Bd7 {[%clk 0:00:20]} 25. Qf3 {[%clk 0:00:17]}  Rd2 {[%clk 0:00:19]} 26. Rc1 {[%clk 0:00:14]}  Rf8 {[%clk 0:00:16]} 27. h3 {[%clk 0:00:11]}  Be6 {[%clk 0:00:14]} 28. Qe3 {[%clk 0:00:08]}  Rd1+ {[%clk 0:00:14]} 29. Kh2 {[%clk 0:00:08]}  Bxf7 {[%clk 0:00:13]} 30. Rxc2 {[%clk 0:00:08]}  Re8 {[%clk 0:00:09]} 31. Qxa7 {[%clk 0:00:08]}  Nb3 {[%clk 0:00:08]} 32. b6+ {[%clk 0:00:08]}  Kd7 {[%clk 0:00:05]} 33. Qxb7+ {[%clk 0:00:08]}  Ke6 {[%clk 0:00:05]} 34. Qxc6 {[%clk 0:00:08]}  Nd4 {[%clk 0:00:03]} 35. Nf4+ {[%clk 0:00:06]}  Kf5 {[%clk 0:00:03]} 36. Qd5+ {[%clk 0:00:05]}  Bxd5 {[%clk 0:00:02]} 37. Rc5 {[%clk 0:00:05]}  Rde1 {[%clk 0:00:03]} 38. Rxd5+ {[%clk 0:00:05]}  Kxf4 {[%clk 0:00:03]} 39. Rxd6 {[%clk 0:00:05]}  Nf5 {[%clk 0:00:03]} 40. Rd7 {[%clk 0:00:04]}  R8e7 {[%clk 0:00:03]} 41. Rc7 {[%clk 0:00:03]}  Rb1 {[%clk 0:00:02]} 42. a5 {[%clk 0:00:03]}  Rxc7 {[%clk 0:00:02]} 43. bxc7 {[%clk 0:00:04]}  Rc1 {[%clk 0:00:03]} 44. c8=Q {[%clk 0:00:03]}  Rxc8 {[%clk 0:00:03]} 45. g3+ {[%clk 0:00:04]}  Kf3 {[%clk 0:00:03]} 46. h4 {[%clk 0:00:04]}  Ra8 {[%clk 0:00:03]} 47. Kh3 {[%clk 0:00:04]}  Rxa5 {[%clk 0:00:03]} 48. g4 {[%clk 0:00:04]}  Nd4 {[%clk 0:00:03]} 49. h5 {[%clk 0:00:04]}  Ra2 {[%clk 0:00:03]} 50. Kh4 {[%clk 0:00:04]}  Rxf2 {[%clk 0:00:03]} 51. g5 {[%clk 0:00:04]}  Rh2# {[%clk 0:00:03]} 0-1


[Site "https://www.chess.com"]

[Event "Titled Tuesday Blitz November 07 Early 2023"]
[White "Smirnov, Timofey"]
[Black "LiadCuba"]
[WhiteFideId "24176427"]
[WhiteElo "2174"]
[BlackElo "2398"]
[Result "0-1"]
[Round "3"]
[TimeControl "180+1"]
[Date "2023.11.07"]
[WhiteClock "0:00:36"]
[BlackClock "0:00:37"]
[Board "222"]

1. d4 {[%clk 0:03:00]}  d5 {[%clk 0:02:57]} 2. Bf4 {[%clk 0:03:00]}  Nf6 {[%clk 0:02:57]} 3. e3 {[%clk 0:03:01]}  c5 {[%clk 0:02:56]} 4. c3 {[%clk 0:03:01]}  Nc6 {[%clk 0:02:56]} 5. Nd2 {[%clk 0:03:01]}  Qb6 {[%clk 0:02:52]} 6. Qb3 {[%clk 0:03:01]}  c4 {[%clk 0:02:50]} 7. Qc2 {[%clk 0:03:01]}  g6 {[%clk 0:02:42]} 8. e4 {[%clk 0:03:01]}  Nxe4 {[%clk 0:02:26]} 9. Nxe4 {[%clk 0:03:01]}  dxe4 {[%clk 0:02:27]} 10. Bxc4 {[%clk 0:02:59]}  Bf5 {[%clk 0:02:27]} 11. Qb3 {[%clk 0:02:58]}  Qxb3 {[%clk 0:02:21]} 12. axb3 {[%clk 0:02:59]}  Bg7 {[%clk 0:02:17]} 13. Ne2 {[%clk 0:02:52]}  e5 {[%clk 0:02:14]} 14. dxe5 {[%clk 0:02:39]}  Nxe5 {[%clk 0:02:15]} 15. Bxe5 {[%clk 0:02:37]}  Bxe5 {[%clk 0:02:16]} 16. Ng3 {[%clk 0:02:36]}  Ke7 {[%clk 0:01:56]} 17. Nxf5+ {[%clk 0:02:35]}  gxf5 {[%clk 0:01:56]} 18. Ke2 {[%clk 0:02:20]}  a6 {[%clk 0:01:55]} 19. Rhd1 {[%clk 0:02:16]}  Rad8 {[%clk 0:01:48]} 20. Rd5 {[%clk 0:01:56]}  Rxd5 {[%clk 0:01:32]} 21. Bxd5 {[%clk 0:01:57]}  Rb8 {[%clk 0:01:31]} 22. Ra5 {[%clk 0:01:41]}  Bc7 {[%clk 0:01:22]} 23. Rc5 {[%clk 0:01:35]}  Kd6 {[%clk 0:01:19]} 24. b4 {[%clk 0:01:29]}  Bb6 {[%clk 0:01:17]} 25. Bxf7 {[%clk 0:01:08]}  Bxc5 {[%clk 0:01:15]} 26. bxc5+ {[%clk 0:01:09]}  Kxc5 {[%clk 0:01:15]} 27. Ke3 {[%clk 0:01:07]}  Rf8 {[%clk 0:00:39]} 28. Be6 {[%clk 0:01:03]}  Kd6 {[%clk 0:00:38]} 29. Bb3 {[%clk 0:00:59]}  Ke5 {[%clk 0:00:38]} 30. g3 {[%clk 0:00:59]}  f4+ {[%clk 0:00:38]} 31. gxf4+ {[%clk 0:00:59]}  Rxf4 {[%clk 0:00:39]} 32. Bd5 {[%clk 0:00:54]}  Rf3+ {[%clk 0:00:36]} 33. Ke2 {[%clk 0:00:36]}  Kxd5 {[%clk 0:00:37]} 0-1


[Site "https://www.chess.com"]

[Event "Titled Tuesday Blitz November 07 Early 2023"]
[White "Dmitrenko, Viktor"]
[Black "vaniavindy"]
[WhiteFideId "14110270"]
[WhiteElo "2390"]
[BlackElo "2171"]
[Result "1-0"]
[Round "3"]
[TimeControl "180+1"]
[Date "2023.11.07"]
[WhiteClock "0:02:18"]
[BlackClock "0:00:00"]
[Board "223"]

1. e4 {[%clk 0:03:00]}  c6 {[%clk 0:02:49]} 2. d4 {[%clk 0:02:56]}  d5 {[%clk 0:02:44]} 3. Nc3 {[%clk 0:02:50]}  dxe4 {[%clk 0:02:41]} 4. Nxe4 {[%clk 0:02:51]}  Bf5 {[%clk 0:02:40]} 5. Ng3 {[%clk 0:02:48]}  Bg6 {[%clk 0:01:54]} 6. h4 {[%clk 0:02:46]}  h6 {[%clk 0:01:26]} 7. h5 {[%clk 0:02:46]}  Bh7 {[%clk 0:01:09]} 8. Nf3 {[%clk 0:02:45]}  Nd7 {[%clk 0:01:07]} 9. Bd3 {[%clk 0:02:44]}  Bxd3 {[%clk 0:01:07]} 10. Qxd3 {[%clk 0:02:44]}  e6 {[%clk 0:01:06]} 11. Bd2 {[%clk 0:02:44]}  Ngf6 {[%clk 0:01:07]} 12. O-O-O {[%clk 0:02:40]}  Bd6 {[%clk 0:01:05]} 13. Ne2 {[%clk 0:02:32]}  Qc7 {[%clk 0:00:51]} 14. Kb1 {[%clk 0:02:30]}  O-O-O {[%clk 0:00:00]} 15. c4 {[%clk 0:02:18]} 1-0


[Site "https://www.chess.com"]